[Event "Early-Titled-Tuesday-Blitz-May-28-2024"]
[Site "Chess.com"]
[Date "2024.05.28"]
[Round "10"]
[White "twofoxniel"]
[Black "Alex_Sahakyan2006"]
[Result "1-0"]
[WhiteElo "2724"]
[BlackElo "2826"]
[TimeControl "180+1"]
[EndTime "9:57:23 PDT"]
[Termination "twofoxniel won by resignation"]

1. e4 {[%clk 0:03:00.9]} 1... c5 {[%clk 0:02:59.1]} 2. c3 {[%clk 0:03:00.3]}
2... b6 {[%clk 0:02:55.5]} 3. d4 {[%clk 0:02:59.8]} 3... Bb7 {[%clk 0:02:56.1]}
4. Nd2 {[%clk 0:02:59.4]} 4... Nf6 {[%clk 0:02:49.8]} 5. Bd3 {[%clk 0:02:58.7]}
5... cxd4 {[%clk 0:02:42.4]} 6. cxd4 {[%clk 0:02:58.5]} 6... Nc6 {[%clk
0:02:39.1]} 7. Ngf3 {[%clk 0:02:58.4]} 7... Nb4 {[%clk 0:02:35.3]} 8. Bb1 {[%clk
0:02:58.5]} 8... Ba6 {[%clk 0:02:33.8]} 9. Nb3 {[%clk 0:02:58.4]} 9... Rc8
{[%clk 0:02:21.3]} 10. a3 {[%clk 0:02:57.4]} 10... Bc4 {[%clk 0:02:21.4]} 11.
Be3 {[%clk 0:02:34.8]} 11... Nc6 {[%clk 0:01:36.1]} 12. Nbd2 {[%clk 0:02:16.5]}
12... Ba6 {[%clk 0:01:31.7]} 13. Ba2 {[%clk 0:02:07.5]} 13... e6 {[%clk
0:01:24.3]} 14. d5 {[%clk 0:01:56]} 14... Ne7 {[%clk 0:00:47.5]} 15. dxe6 {[%clk
0:01:46.8]} 15... fxe6 {[%clk 0:00:46.1]} 16. Bxe6 {[%clk 0:01:42.5]} 16... Nc6
{[%clk 0:00:19.5]} 17. Ba2 {[%clk 0:01:39.8]} 17... Bc5 {[%clk 0:00:16.4]} 18.
Qa4 {[%clk 0:01:30.2]} 18... Bxe3 {[%clk 0:00:13.8]} 19. Qxa6 {[%clk 0:01:23.7]}
19... Bxf2+ {[%clk 0:00:07.1]} 20. Kxf2 {[%clk 0:01:20.8]} 20... Ng4+ {[%clk
0:00:07.4]} 21. Ke2 {[%clk 0:01:17.5]} 21... Rf8 {[%clk 0:00:08]} 22. Qb5 {[%clk
0:01:10.3]} 22... g6 {[%clk 0:00:05.1]} 23. Rhf1 {[%clk 0:01:07.3]} 23... Qe7
{[%clk 0:00:04]} 24. Rac1 {[%clk 0:01:02]} 24... Rxf3 {[%clk 0:00:03.5]} 25.
gxf3 {[%clk 0:00:32]} 25... Nd4+ {[%clk 0:00:03.7]} 26. Kd3 {[%clk 0:00:32.7]}
26... Nxb5 {[%clk 0:00:02.9]} 27. Rxc8+ {[%clk 0:00:32.7]} 1-0

[Event "Early-Titled-Tuesday-Blitz-May-28-2024"]
[Site "Chess.com"]
[Date "2024.05.28"]
[Round "10"]
[White "FGHSMN"]
[Black "GOGIEFF"]
[Result "1-0"]
[WhiteElo "2934"]
[BlackElo "3010"]
[TimeControl "180+1"]
[EndTime "9:57:24 PDT"]
[Termination "FGHSMN won by resignation"]

1. e4 {[%clk 0:03:00.9]} 1... c5 {[%clk 0:02:59.7]} 2. Nf3 {[%clk 0:03:00.7]}
2... Nc6 {[%clk 0:03:00]} 3. Nc3 {[%clk 0:02:58.8]} 3... d6 {[%clk 0:02:47.7]}
4. d4 {[%clk 0:02:57.1]} 4... cxd4 {[%clk 0:02:47.5]} 5. Nxd4 {[%clk 0:02:57.9]}
5... Nf6 {[%clk 0:02:47.8]} 6. Be2 {[%clk 0:02:57.9]} 6... e5 {[%clk 0:02:46.4]}
7. Nxc6 {[%clk 0:02:58]} 7... bxc6 {[%clk 0:02:46.1]} 8. Qd3 {[%clk 0:02:58.5]}
8... Be7 {[%clk 0:02:41.2]} 9. Qg3 {[%clk 0:02:58.2]} 9... O-O {[%clk
0:02:41.3]} 10. O-O {[%clk 0:02:58.9]} 10... Be6 {[%clk 0:02:36.4]} 11. f4
{[%clk 0:02:55.6]} 11... exf4 {[%clk 0:02:34.9]} 12. Bxf4 {[%clk 0:02:56.5]}
12... Qb6+ {[%clk 0:02:29.8]} 13. Kh1 {[%clk 0:02:56.7]} 13... Qxb2 {[%clk
0:02:30]} 14. Rab1 {[%clk 0:02:52.5]} 14... Qxc2 {[%clk 0:02:21.9]} 15. Bh6
{[%clk 0:02:52.5]} 15... g6 {[%clk 0:02:19.8]} 16. Rfc1 {[%clk 0:02:37.7]} 16...
Nxe4 {[%clk 0:02:19.9]} 17. Qe1 {[%clk 0:02:29.5]} 17... Qxc3 {[%clk 0:02:01.4]}
18. Rxc3 {[%clk 0:02:28.9]} 18... Rfe8 {[%clk 0:01:59.5]} 19. Re3 {[%clk
0:02:18]} 19... d5 {[%clk 0:01:58.9]} 20. Bf3 {[%clk 0:02:15.1]} 20... Bf5
{[%clk 0:01:41.9]} 21. g4 {[%clk 0:02:06.7]} 21... Be6 {[%clk 0:01:37.6]} 22.
Bxe4 {[%clk 0:02:01.4]} 22... dxe4 {[%clk 0:01:37.9]} 23. Qc3 {[%clk 0:02:00.9]}
23... f6 {[%clk 0:01:36.8]} 24. g5 {[%clk 0:01:58.8]} 24... Bf7 {[%clk
0:01:32.5]} 25. gxf6 {[%clk 0:01:58.3]} 25... Bd6 {[%clk 0:01:33]} 26. Qxc6
{[%clk 0:01:57.3]} 26... Red8 {[%clk 0:01:28]} 27. Rd1 {[%clk 0:01:52.8]} 27...
Be5 {[%clk 0:01:23]} 28. Rxd8+ {[%clk 0:01:51.9]} 28... Rxd8 {[%clk 0:01:23.9]}
29. Kg2 {[%clk 0:01:25.8]} 29... Bd5 {[%clk 0:01:20.2]} 30. Qc5 {[%clk
0:01:23.6]} 30... Bxf6 {[%clk 0:01:15.6]} 31. Qxa7 {[%clk 0:01:23.6]} 31... Bf7
{[%clk 0:01:07.3]} 32. Bf4 {[%clk 0:01:16.6]} 32... g5 {[%clk 0:01:05.7]} 33.
Bc7 {[%clk 0:01:14.6]} 33... Rd2+ {[%clk 0:01:05.3]} 34. Kg1 {[%clk 0:01:07.4]}
34... Kg7 {[%clk 0:00:44.4]} 35. Qb8 {[%clk 0:01:01.9]} 35... Rb2 {[%clk
0:00:37.8]} 36. Bb6 {[%clk 0:00:41.9]} 36... Kg6 {[%clk 0:00:30.5]} 37. Qd6
{[%clk 0:00:41.5]} 37... Rxa2 {[%clk 0:00:19.4]} 38. Bd4 {[%clk 0:00:39.1]} 1-0

[Event "Early-Titled-Tuesday-Blitz-May-28-2024"]
[Site "Chess.com"]
[Date "2024.05.28"]
[Round "10"]
[White "shimastream"]
[Black "MarkusRagger"]
[Result "1-0"]
[WhiteElo "3029"]
[BlackElo "2807"]
[TimeControl "180+1"]
[EndTime "9:57:24 PDT"]
[Termination "shimastream won by resignation"]

1. e4 {[%clk 0:03:00.9]} 1... e5 {[%clk 0:02:59.6]} 2. Nf3 {[%clk 0:02:59.9]}
2... Nc6 {[%clk 0:03:00.2]} 3. Nc3 {[%clk 0:03:00.8]} 3... Nf6 {[%clk
0:02:59.9]} 4. h3 {[%clk 0:03:00.1]} 4... d5 {[%clk 0:02:59.1]} 5. exd5 {[%clk
0:03:00.4]} 5... Nxd5 {[%clk 0:02:59.8]} 6. Bb5 {[%clk 0:03:01]} 6... Nxc3
{[%clk 0:02:59.3]} 7. bxc3 {[%clk 0:03:01.9]} 7... Bd6 {[%clk 0:02:58.9]} 8. O-O
{[%clk 0:03:02.4]} 8... O-O {[%clk 0:02:58.7]} 9. Re1 {[%clk 0:03:03]} 9... Qf6
{[%clk 0:02:47.3]} 10. d4 {[%clk 0:03:02.5]} 10... exd4 {[%clk 0:02:45.3]} 11.
cxd4 {[%clk 0:03:03.4]} 11... h6 {[%clk 0:02:42.2]} 12. Rb1 {[%clk 0:03:02.6]}
12... Bf5 {[%clk 0:02:32.7]} 13. Bf1 {[%clk 0:02:56.1]} 13... b6 {[%clk
0:02:26.3]} 14. Bb2 {[%clk 0:02:55.8]} 14... Ne7 {[%clk 0:01:34.1]} 15. d5
{[%clk 0:02:52.6]} 15... Qg6 {[%clk 0:01:34]} 16. Nh4 {[%clk 0:02:52.7]} 16...
Qg5 {[%clk 0:01:32]} 17. Nxf5 {[%clk 0:02:53.3]} 17... Nxf5 {[%clk 0:01:31.1]}
18. Re4 {[%clk 0:02:53.4]} 18... h5 {[%clk 0:01:21.5]} 19. Bc1 {[%clk
0:02:42.3]} 19... Qf6 {[%clk 0:01:18.6]} 20. Qxh5 {[%clk 0:02:39.3]} 20... Bc5
{[%clk 0:01:17.8]} 21. Rf4 {[%clk 0:02:17.5]} 21... g6 {[%clk 0:01:16.1]} 22.
Qg4 {[%clk 0:02:15.6]} 22... Qg7 {[%clk 0:01:13.8]} 23. Bb2 {[%clk 0:02:13.6]}
23... f6 {[%clk 0:01:02.2]} 24. Bd3 {[%clk 0:02:12.8]} 24... Ne7 {[%clk
0:00:47.4]} 25. Re1 {[%clk 0:01:57.6]} 25... Bd6 {[%clk 0:00:47.2]} 26. Rf3
{[%clk 0:01:54.6]} 26... Rf7 {[%clk 0:00:45]} 27. Re6 {[%clk 0:01:51.7]} 27...
Raf8 {[%clk 0:00:44.5]} 28. c4 {[%clk 0:01:47]} 28... f5 {[%clk 0:00:43.6]} 29.
Bxg7 {[%clk 0:01:24]} 29... fxg4 {[%clk 0:00:43.4]} 30. Rxf7 {[%clk 0:01:14.3]}
30... Rxf7 {[%clk 0:00:44.3]} 31. Bd4 {[%clk 0:01:14]} 31... gxh3 {[%clk
0:00:44.4]} 32. gxh3 {[%clk 0:01:03.5]} 32... Kh7 {[%clk 0:00:44.5]} 33. Kg2
{[%clk 0:00:59.2]} 33... Nf5 {[%clk 0:00:43.2]} 34. Bxf5 {[%clk 0:00:59.3]}
34... Rxf5 {[%clk 0:00:44]} 35. Re4 {[%clk 0:00:59]} 35... a5 {[%clk 0:00:39.2]}
36. a4 {[%clk 0:00:58.7]} 36... Kg8 {[%clk 0:00:38.3]} 37. Be3 {[%clk
0:00:55.4]} 37... Kf7 {[%clk 0:00:36.3]} 38. f4 {[%clk 0:00:55.6]} 38... Rh5
{[%clk 0:00:35.9]} 39. Kg3 {[%clk 0:00:53.7]} 39... Rf5 {[%clk 0:00:36]} 40. Kg4
{[%clk 0:00:54]} 40... Rh5 {[%clk 0:00:36.6]} 41. Bd4 {[%clk 0:00:52.6]} 41...
Rf5 {[%clk 0:00:36.7]} 42. Be5 {[%clk 0:00:51.8]} 42... Bxe5 {[%clk 0:00:28.1]}
43. fxe5 {[%clk 0:00:50.5]} 43... Ke7 {[%clk 0:00:28.4]} 44. e6 {[%clk
0:00:48.1]} 44... Rf1 {[%clk 0:00:28.6]} 45. Rf4 {[%clk 0:00:48.5]} 45... Ra1
{[%clk 0:00:28.2]} 46. Rf7+ {[%clk 0:00:48.5]} 46... Ke8 {[%clk 0:00:28.9]} 47.
Rxc7 {[%clk 0:00:48.4]} 47... Rxa4 {[%clk 0:00:29.5]} 48. d6 {[%clk 0:00:48.9]}
1-0

[Event "Early-Titled-Tuesday-Blitz-May-28-2024"]
[Site "Chess.com"]
[Date "2024.05.28"]
[Round "10"]
[White "Veleamater"]
[Black "sergeikim"]
[Result "0-1"]
[WhiteElo "2445"]
[BlackElo "2614"]
[TimeControl "180+1"]
[EndTime "9:57:24 PDT"]
[Termination "sergeikim won by resignation"]

1. g3 {[%clk 0:03:00.9]} 1... Nf6 {[%clk 0:02:59.6]} 2. Bg2 {[%clk 0:03:00.2]}
2... g6 {[%clk 0:03:00]} 3. d3 {[%clk 0:02:59.8]} 3... d6 {[%clk 0:03:00.5]} 4.
Nc3 {[%clk 0:02:59.5]} 4... Bg7 {[%clk 0:03:00.9]} 5. e4 {[%clk 0:02:59.4]} 5...
O-O {[%clk 0:03:01]} 6. f4 {[%clk 0:02:59.6]} 6... c5 {[%clk 0:02:49.7]} 7. h3
{[%clk 0:02:58.7]} 7... Nc6 {[%clk 0:02:49.5]} 8. g4 {[%clk 0:02:57.7]} 8... e6
{[%clk 0:02:47.7]} 9. Nf3 {[%clk 0:02:57.5]} 9... Rb8 {[%clk 0:02:45.5]} 10. O-O
{[%clk 0:02:55.2]} 10... b5 {[%clk 0:02:45.4]} 11. Ne2 {[%clk 0:02:54.6]} 11...
Ne8 {[%clk 0:02:41.2]} 12. Ng3 {[%clk 0:02:52.2]} 12... Nc7 {[%clk 0:02:36.1]}
13. h4 {[%clk 0:02:49.4]} 13... Nd4 {[%clk 0:02:25.5]} 14. c3 {[%clk 0:02:45.4]}
14... Nxf3+ {[%clk 0:02:24.4]} 15. Qxf3 {[%clk 0:02:45]} 15... Qxh4 {[%clk
0:02:20.9]} 16. Rf2 {[%clk 0:02:41.5]} 16... f5 {[%clk 0:02:05]} 17. g5 {[%clk
0:02:26.3]} 17... Bb7 {[%clk 0:02:00.5]} 18. Bd2 {[%clk 0:02:23.9]} 18... c4
{[%clk 0:01:53.6]} 19. Re1 {[%clk 0:02:19.6]} 19... Rbe8 {[%clk 0:01:40.1]} 20.
Qe3 {[%clk 0:02:11.8]} 20... cxd3 {[%clk 0:01:26.6]} 21. Qxa7 {[%clk 0:02:08]}
21... Qxg3 {[%clk 0:01:23.9]} 22. Qxb7 {[%clk 0:02:04.4]} 22... Rf7 {[%clk
0:01:18.5]} 23. Qc6 {[%clk 0:02:02.3]} 23... Rd8 {[%clk 0:01:14.2]} 24. exf5
{[%clk 0:01:57.8]} 24... gxf5 {[%clk 0:01:11.4]} 25. Re3 {[%clk 0:01:38.9]}
25... Qg4 {[%clk 0:01:10]} 26. Rxd3 {[%clk 0:01:36.7]} 26... Nd5 {[%clk
0:01:00]} 27. Kh2 {[%clk 0:01:23.2]} 27... Ne7 {[%clk 0:00:49.7]} 28. Qc7 {[%clk
0:01:03.1]} 28... Rdf8 {[%clk 0:00:40.5]} 29. Qxd6 {[%clk 0:00:57]} 29... Ng6
{[%clk 0:00:35.8]} 30. Rg3 {[%clk 0:00:52]} 30... Qh4+ {[%clk 0:00:34.7]} 31.
Bh3 {[%clk 0:00:52.2]} 31... e5 {[%clk 0:00:32]} 32. Qd5 {[%clk 0:00:50.1]}
32... exf4 {[%clk 0:00:29.7]} 33. Rgf3 {[%clk 0:00:50.3]} 33... Ne5 {[%clk
0:00:24.7]} 34. Rxf4 {[%clk 0:00:48.4]} 34... Ng4+ {[%clk 0:00:24.8]} 35. Rxg4
{[%clk 0:00:48]} 35... fxg4 {[%clk 0:00:24.8]} 36. Rxf7 {[%clk 0:00:47.9]} 36...
Rxf7 {[%clk 0:00:25.3]} 37. Qd8+ {[%clk 0:00:34.2]} 37... Bf8 {[%clk 0:00:25.3]}
0-1

[Event "Early-Titled-Tuesday-Blitz-May-28-2024"]
[Site "Chess.com"]
[Date "2024.05.28"]
[Round "10"]
[White "Resignify"]
[Black "alex1531"]
[Result "1-0"]
[WhiteElo "2329"]
[BlackElo "2432"]
[TimeControl "180+1"]
[EndTime "9:57:26 PDT"]
[Termination "Resignify won by resignation"]

1. e4 {[%clk 0:03:00.9]} 1... c5 {[%clk 0:02:59.7]} 2. Nc3 {[%clk 0:02:59.2]}
2... e6 {[%clk 0:02:58.6]} 3. g3 {[%clk 0:02:59.5]} 3... a6 {[%clk 0:02:39.5]}
4. Bg2 {[%clk 0:02:59.2]} 4... b5 {[%clk 0:02:39.2]} 5. d3 {[%clk 0:02:59.3]}
5... Bb7 {[%clk 0:02:39.2]} 6. f4 {[%clk 0:02:58.7]} 6... Nc6 {[%clk 0:02:36]}
7. Nf3 {[%clk 0:02:57.8]} 7... d6 {[%clk 0:02:30]} 8. O-O {[%clk 0:02:54.6]}
8... Nf6 {[%clk 0:02:30.5]} 9. h3 {[%clk 0:02:53.6]} 9... Be7 {[%clk 0:02:29.9]}
10. g4 {[%clk 0:02:52.1]} 10... b4 {[%clk 0:02:29]} 11. Na4 {[%clk 0:02:48.1]}
11... Nd7 {[%clk 0:02:27]} 12. Be3 {[%clk 0:02:34.8]} 12... Qa5 {[%clk
0:02:20.3]} 13. b3 {[%clk 0:02:33.3]} 13... Bf6 {[%clk 0:02:12.6]} 14. Rb1
{[%clk 0:02:28.6]} 14... Nb6 {[%clk 0:02:02.3]} 15. Nxb6 {[%clk 0:02:18]} 15...
Qxb6 {[%clk 0:02:03.2]} 16. g5 {[%clk 0:01:42.8]} 16... Bc3 {[%clk 0:02:02.9]}
17. Nd2 {[%clk 0:01:26.1]} 17... Na5 {[%clk 0:01:38.6]} 18. Nc4 {[%clk
0:01:21.1]} 18... Nxc4 {[%clk 0:01:38.4]} 19. bxc4 {[%clk 0:01:20.5]} 19... Qa5
{[%clk 0:01:24.3]} 20. Qe2 {[%clk 0:01:19.3]} 20... Qxa2 {[%clk 0:01:19.9]} 21.
e5 {[%clk 0:01:19.7]} 21... Bxg2 {[%clk 0:01:06]} 22. Qxg2 {[%clk 0:01:20.6]}
22... O-O {[%clk 0:01:05.7]} 23. exd6 {[%clk 0:01:19.7]} 23... Qa5 {[%clk
0:00:44]} 24. f5 {[%clk 0:01:06.3]} 24... exf5 {[%clk 0:00:32.3]} 25. Rxf5
{[%clk 0:01:05.5]} 25... Rac8 {[%clk 0:00:32.5]} 26. Qd5 {[%clk 0:00:58.9]}
26... Rce8 {[%clk 0:00:12.1]} 27. Bxc5 {[%clk 0:00:54.2]} 27... Re2 {[%clk
0:00:11.6]} 28. d7 {[%clk 0:00:44.4]} 28... Qa2 {[%clk 0:00:10.4]} 29. Qxf7+
{[%clk 0:00:30.9]} 1-0

[Event "Early-Titled-Tuesday-Blitz-May-28-2024"]
[Site "Chess.com"]
[Date "2024.05.28"]
[Round "10"]
[White "noblerone"]
[Black "BashirliSaadat"]
[Result "1-0"]
[WhiteElo "2527"]
[BlackElo "2371"]
[TimeControl "180+1"]
[EndTime "9:57:29 PDT"]
[Termination "noblerone won by checkmate"]

1. d4 {[%clk 0:02:39.5]} 1... d5 {[%clk 0:02:59.7]} 2. Nf3 {[%clk 0:02:39.8]}
2... e6 {[%clk 0:02:56.6]} 3. c3 {[%clk 0:02:39.6]} 3... c5 {[%clk 0:02:55.1]}
4. Bg5 {[%clk 0:02:38.7]} 4... Be7 {[%clk 0:02:52.4]} 5. Bxe7 {[%clk 0:02:38.6]}
5... Nxe7 {[%clk 0:02:53.3]} 6. e3 {[%clk 0:02:39.4]} 6... cxd4 {[%clk
0:02:50.5]} 7. exd4 {[%clk 0:02:39.4]} 7... Nbc6 {[%clk 0:02:51.4]} 8. Bd3
{[%clk 0:02:39.2]} 8... Ng6 {[%clk 0:02:52]} 9. g3 {[%clk 0:02:38.6]} 9... O-O
{[%clk 0:02:52.3]} 10. h4 {[%clk 0:02:38.3]} 10... Re8 {[%clk 0:02:51.8]} 11. h5
{[%clk 0:02:38.2]} 11... Nf8 {[%clk 0:02:52.3]} 12. Ne5 {[%clk 0:02:27.7]} 12...
f6 {[%clk 0:02:50.7]} 13. Nxc6 {[%clk 0:02:17.2]} 13... bxc6 {[%clk 0:02:51.6]}
14. O-O {[%clk 0:02:15.5]} 14... e5 {[%clk 0:02:51.3]} 15. Re1 {[%clk
0:02:07.6]} 15... e4 {[%clk 0:02:48.6]} 16. Bf1 {[%clk 0:02:05.5]} 16... f5
{[%clk 0:02:48.2]} 17. c4 {[%clk 0:02:04.8]} 17... Be6 {[%clk 0:02:46.9]} 18.
cxd5 {[%clk 0:02:03.8]} 18... cxd5 {[%clk 0:02:47.8]} 19. Nc3 {[%clk 0:02:04.3]}
19... Qg5 {[%clk 0:02:44.5]} 20. Nb5 {[%clk 0:01:55.5]} 20... f4 {[%clk
0:02:17.9]} 21. Nc7 {[%clk 0:01:26.2]} 21... fxg3 {[%clk 0:02:15.3]} 22. Nxe8
{[%clk 0:01:20.2]} 22... gxf2+ {[%clk 0:01:35.7]} 23. Kxf2 {[%clk 0:01:21.1]}
23... Rxe8 {[%clk 0:01:26.7]} 24. Bg2 {[%clk 0:00:58.6]} 24... Nd7 {[%clk
0:01:20.3]} 25. Qc1 {[%clk 0:00:49.3]} 25... Qh4+ {[%clk 0:01:06.6]} 26. Kg1
{[%clk 0:00:48]} 26... Nf6 {[%clk 0:00:49.6]} 27. Qc6 {[%clk 0:00:42.3]} 27...
Bd7 {[%clk 0:00:46.1]} 28. Qd6 {[%clk 0:00:38.9]} 28... Qxh5 {[%clk 0:00:42.2]}
29. Rf1 {[%clk 0:00:32.8]} 29... e3 {[%clk 0:00:34.7]} 30. Rxf6 {[%clk
0:00:27.6]} 30... e2 {[%clk 0:00:16]} 31. Bxd5+ {[%clk 0:00:26.2]} 31... Kh8
{[%clk 0:00:11.2]} 32. Rf8+ {[%clk 0:00:25.8]} 32... Rxf8 {[%clk 0:00:11.3]} 33.
Qxf8# {[%clk 0:00:26.7]} 1-0

[Event "Early-Titled-Tuesday-Blitz-May-28-2024"]
[Site "Chess.com"]
[Date "2024.05.28"]
[Round "10"]
[White "WolfBaoBaoLang"]
[Black "Masterbeaterr"]
[Result "1/2-1/2"]
[WhiteElo "2115"]
[BlackElo "2464"]
[TimeControl "180+1"]
[EndTime "9:57:29 PDT"]
[Termination "Game drawn by repetition"]

1. e4 {[%clk 0:03:00.9]} 1... e5 {[%clk 0:02:59.9]} 2. Nc3 {[%clk 0:03:00.6]}
2... Nf6 {[%clk 0:02:58]} 3. f4 {[%clk 0:02:37.7]} 3... d5 {[%clk 0:02:56.3]} 4.
fxe5 {[%clk 0:01:59.8]} 4... Nxe4 {[%clk 0:02:54.5]} 5. Qf3 {[%clk 0:01:59.8]}
5... Nc6 {[%clk 0:02:53.3]} 6. Bb5 {[%clk 0:01:59.2]} 6... Nxc3 {[%clk 0:02:52]}
7. dxc3 {[%clk 0:01:59]} 7... Be6 {[%clk 0:02:52.1]} 8. Bf4 {[%clk 0:01:58.2]}
8... Be7 {[%clk 0:02:50.3]} 9. O-O-O {[%clk 0:01:57.5]} 9... O-O {[%clk
0:02:50.1]} 10. h4 {[%clk 0:01:57]} 10... Qd7 {[%clk 0:02:47.3]} 11. Qg3 {[%clk
0:01:54.5]} 11... Rfd8 {[%clk 0:02:44.6]} 12. Nf3 {[%clk 0:01:51.9]} 12... a6
{[%clk 0:02:44]} 13. Bd3 {[%clk 0:01:50.5]} 13... Bf5 {[%clk 0:02:42.8]} 14. h5
{[%clk 0:01:42]} 14... Bxd3 {[%clk 0:02:38.6]} 15. cxd3 {[%clk 0:01:42.9]} 15...
d4 {[%clk 0:02:37.7]} 16. h6 {[%clk 0:01:01.8]} 16... g6 {[%clk 0:02:35.3]} 17.
c4 {[%clk 0:00:52.6]} 17... Qf5 {[%clk 0:02:31.4]} 18. Rhe1 {[%clk 0:00:47.8]}
18... Re8 {[%clk 0:02:26]} 19. Kb1 {[%clk 0:00:38.6]} 19... Rad8 {[%clk
0:02:24]} 20. e6 {[%clk 0:00:25.5]} 20... fxe6 {[%clk 0:02:17.6]} 21. Bxc7
{[%clk 0:00:25.6]} 21... Rc8 {[%clk 0:02:09.1]} 22. Be5 {[%clk 0:00:25.4]} 22...
Rcd8 {[%clk 0:01:53.8]} 23. Bg7 {[%clk 0:00:26]} 23... Bb4 {[%clk 0:01:45.5]}
24. Rf1 {[%clk 0:00:26]} 24... Bd6 {[%clk 0:01:34.2]} 25. Qh4 {[%clk 0:00:25.6]}
25... Be7 {[%clk 0:01:30.3]} 26. Qg3 {[%clk 0:00:24.6]} 26... Qa5 {[%clk
0:01:23]} 27. Ne5 {[%clk 0:00:23.3]} 27... Nxe5 {[%clk 0:01:17.8]} 28. Bxe5
{[%clk 0:00:24.2]} 28... Rf8 {[%clk 0:01:15.3]} 29. Rh1 {[%clk 0:00:23.9]} 29...
Rf5 {[%clk 0:01:14]} 30. Bg7 {[%clk 0:00:22.5]} 30... Bf6 {[%clk 0:01:06.5]} 31.
Bxf6 {[%clk 0:00:22.3]} 31... Rxf6 {[%clk 0:01:07.4]} 32. Rde1 {[%clk
0:00:22.7]} 32... Rdf8 {[%clk 0:01:07.1]} 33. Qg4 {[%clk 0:00:22.2]} 33... Qb6
{[%clk 0:01:05.5]} 34. Re5 {[%clk 0:00:22.1]} 34... Rf2 {[%clk 0:01:05]} 35.
Qxe6+ {[%clk 0:00:21.7]} 35... Qxe6 {[%clk 0:01:03.8]} 36. Rxe6 {[%clk
0:00:22.6]} 36... Rxg2 {[%clk 0:01:03.5]} 37. Re7 {[%clk 0:00:23]} 37... b5
{[%clk 0:01:00.8]} 38. Rhe1 {[%clk 0:00:23]} 38... bxc4 {[%clk 0:00:59.2]} 39.
dxc4 {[%clk 0:00:23.6]} 39... d3 {[%clk 0:01:00.1]} 40. Rg7+ {[%clk 0:00:23.8]}
40... Kh8 {[%clk 0:00:58.6]} 41. Rf7 {[%clk 0:00:24.1]} 41... Rd8 {[%clk
0:00:52.7]} 42. Ref1 {[%clk 0:00:24.3]} 42... Kg8 {[%clk 0:00:50.2]} 43. Rg7+
{[%clk 0:00:24.6]} 43... Kh8 {[%clk 0:00:50.3]} 44. Rd7 {[%clk 0:00:25.2]} 44...
Rb8 {[%clk 0:00:41.1]} 45. Rb7 {[%clk 0:00:24.5]} 45... Rd8 {[%clk 0:00:39.5]}
46. Rd7 {[%clk 0:00:24.8]} 46... Rb8 {[%clk 0:00:39.7]} 47. Rb7 {[%clk
0:00:25.2]} 47... Rd8 {[%clk 0:00:39.8]} 48. Rd7 {[%clk 0:00:25.5]} 1/2-1/2

[Event "Early-Titled-Tuesday-Blitz-May-28-2024"]
[Site "Chess.com"]
[Date "2024.05.28"]
[Round "10"]
[White "CarlosjPineror"]
[Black "TigrVShlyape"]
[Result "1/2-1/2"]
[WhiteElo "2768"]
[BlackElo "2915"]
[TimeControl "180+1"]
[EndTime "9:57:33 PDT"]
[Termination "Game drawn - insufficient material"]

1. e4 {[%clk 0:03:00.9]} 1... e5 {[%clk 0:02:59.6]} 2. Nf3 {[%clk 0:03:00.8]}
2... Nc6 {[%clk 0:03:00]} 3. Bb5 {[%clk 0:03:01.3]} 3... Nf6 {[%clk 0:02:59.4]}
4. d4 {[%clk 0:03:01.1]} 4... Nxd4 {[%clk 0:02:41.3]} 5. Nxd4 {[%clk 0:02:59.7]}
5... exd4 {[%clk 0:02:41.7]} 6. Qxd4 {[%clk 0:03:00.2]} 6... c6 {[%clk
0:02:38.6]} 7. Be2 {[%clk 0:02:53.9]} 7... Qb6 {[%clk 0:02:36.2]} 8. Qd3 {[%clk
0:02:47.2]} 8... d5 {[%clk 0:02:23.8]} 9. exd5 {[%clk 0:02:46.7]} 9... Nxd5
{[%clk 0:02:21.8]} 10. O-O {[%clk 0:02:46.3]} 10... Be7 {[%clk 0:02:15.1]} 11.
Nc3 {[%clk 0:02:28.6]} 11... Nxc3 {[%clk 0:02:12.6]} 12. Qxc3 {[%clk 0:02:11.7]}
12... O-O {[%clk 0:02:07.7]} 13. Be3 {[%clk 0:02:05.4]} 13... Qb4 {[%clk
0:02:06.4]} 14. Qxb4 {[%clk 0:02:04.7]} 14... Bxb4 {[%clk 0:02:05.9]} 15. c3
{[%clk 0:02:05.6]} 15... Be7 {[%clk 0:02:04.5]} 16. Rad1 {[%clk 0:02:06.2]}
16... Be6 {[%clk 0:02:04.5]} 17. b3 {[%clk 0:02:04.2]} 17... a5 {[%clk
0:02:03.8]} 18. Bc4 {[%clk 0:01:49.8]} 18... Bxc4 {[%clk 0:02:01.6]} 19. bxc4
{[%clk 0:01:50.7]} 19... b5 {[%clk 0:01:54.4]} 20. Rd7 {[%clk 0:01:45.3]} 20...
Bf6 {[%clk 0:01:53.4]} 21. cxb5 {[%clk 0:01:41.4]} 21... cxb5 {[%clk 0:01:53.6]}
22. Bd4 {[%clk 0:01:41.8]} 22... Bxd4 {[%clk 0:01:53]} 23. cxd4 {[%clk
0:01:42.7]} 23... Rfd8 {[%clk 0:01:52.9]} 24. Rxd8+ {[%clk 0:01:40.7]} 24...
Rxd8 {[%clk 0:01:53]} 25. Rd1 {[%clk 0:01:41.1]} 25... Kf8 {[%clk 0:01:50.8]}
26. f3 {[%clk 0:01:40.8]} 26... Ke7 {[%clk 0:01:51]} 27. Kf2 {[%clk 0:01:41.4]}
27... Rc8 {[%clk 0:01:51.3]} 28. Ke3 {[%clk 0:01:41.1]} 28... Rc3+ {[%clk
0:01:49.4]} 29. Ke4 {[%clk 0:01:30.9]} 29... Kd6 {[%clk 0:01:49.2]} 30. Rd2
{[%clk 0:01:28.2]} 30... b4 {[%clk 0:01:48.6]} 31. h4 {[%clk 0:01:25.6]} 31...
a4 {[%clk 0:01:36.5]} 32. Rb2 {[%clk 0:01:10.4]} 32... b3 {[%clk 0:01:36.2]} 33.
axb3 {[%clk 0:01:06.5]} 33... Rxb3 {[%clk 0:01:35.2]} 34. Rc2 {[%clk 0:01:02.6]}
34... Rb8 {[%clk 0:01:31.2]} 35. Ra2 {[%clk 0:00:59.6]} 35... Ra8 {[%clk
0:01:30.7]} 36. Ra3 {[%clk 0:00:58.7]} 36... h5 {[%clk 0:01:25.9]} 37. g4 {[%clk
0:00:55.8]} 37... g6 {[%clk 0:01:26.1]} 38. g5 {[%clk 0:00:53]} 38... Ra5 {[%clk
0:01:25.8]} 39. f4 {[%clk 0:00:49.8]} 39... Ke6 {[%clk 0:01:25.9]} 40. d5+
{[%clk 0:00:47.1]} 40... Kd6 {[%clk 0:01:26.1]} 41. f5 {[%clk 0:00:44.3]} 41...
Ra8 {[%clk 0:01:07.8]} 42. f6 {[%clk 0:00:41]} 42... Ra5 {[%clk 0:01:06]} 43.
Kd4 {[%clk 0:00:38.4]} 43... Rxd5+ {[%clk 0:01:05.4]} 44. Kc3 {[%clk 0:00:31.5]}
44... Ra5 {[%clk 0:01:02.9]} 45. Kb4 {[%clk 0:00:25.3]} 45... Ra7 {[%clk
0:01:02.4]} 46. Rxa4 {[%clk 0:00:19.4]} 46... Rxa4+ {[%clk 0:01:02.3]} 47. Kxa4
{[%clk 0:00:20.3]} 47... Ke5 {[%clk 0:01:02.6]} 48. Kb5 {[%clk 0:00:21]} 48...
Kf5 {[%clk 0:01:03]} 49. Kc6 {[%clk 0:00:21.9]} 49... Kg4 {[%clk 0:01:03.5]} 50.
Kd7 {[%clk 0:00:22.4]} 50... Kxh4 {[%clk 0:01:04]} 51. Ke7 {[%clk 0:00:23]}
51... Kxg5 {[%clk 0:01:04.5]} 52. Kxf7 {[%clk 0:00:23.7]} 52... h4 {[%clk
0:01:05.1]} 53. Kg7 {[%clk 0:00:24.2]} 53... h3 {[%clk 0:01:05.6]} 54. f7 {[%clk
0:00:24.6]} 54... h2 {[%clk 0:01:05.9]} 55. f8=Q {[%clk 0:00:25.5]} 55... h1=Q
{[%clk 0:01:05.6]} 56. Qf6+ {[%clk 0:00:26.1]} 56... Kg4 {[%clk 0:01:03.6]} 57.
Qxg6+ {[%clk 0:00:26.4]} 57... Kf4 {[%clk 0:01:02.8]} 58. Qh6+ {[%clk
0:00:26.1]} 58... Qxh6+ {[%clk 0:01:02.8]} 59. Kxh6 {[%clk 0:00:27]} 1/2-1/2